[Event "MČR v bleskovém šachu družstev 2019"]
[Site "Teplice, Czech Republic"]
[Date "2019.09.14"]
[Round "8.11"]
[White "Cech, Pavel"]
[Black "Strasil, Pavel"]
[Result "1/2-1/2"]
[TimeControl "3 mim. + 2 s"]
[WhiteTitle "IM"]
[BlackFideId "308013"]
[WhiteElo "2387"]
[BlackElo "2026"]

1. e4 {[%clk 00:03:02]} {[%emt 00:00:02]} e6 {[%clk 00:03:04]} {[%emt
00:00:01]} 2. d4 {[%clk 00:03:03]} {[%emt 00:00:01]} d5 {[%clk 00:03:05]} 3.
Nd2 {[%clk 00:03:03]} {[%emt 00:00:01]} a6 {[%clk 00:03:05]} {[%emt 00:00:02]}
4. e5 {[%clk 00:03:01]} {[%emt 00:00:04]} c5 {[%clk 00:03:05]} {[%emt
00:00:02]} 5. c3 {[%clk 00:03:02]} Nc6 {[%clk 00:03:03]} {[%emt 00:00:04]} 6.
Ngf3 {[%clk 00:03:03]} {[%emt 00:00:01]} f6 {[%clk 00:03:03]} {[%emt 00:00:02]}
7. Bd3 {[%clk 00:03:01]} {[%emt 00:00:04]} Nge7 {[%clk 00:02:49]} {[%emt
00:00:16]} 8. exf6 {[%clk 00:02:56]} {[%emt 00:00:06]} gxf6 {[%clk 00:02:50]}
{[%emt 00:00:01]} 9. Nh4 {[%clk 00:02:57]} {[%emt 00:00:01]} h5 {[%clk
00:02:40]} {[%emt 00:00:11]} 10. Ng6 {[%clk 00:02:19]} {[%emt 00:00:40]} Nxg6
{[%clk 00:02:37]} {[%emt 00:00:06]} 11. Bxg6+ {[%clk 00:02:19]} {[%emt
00:00:01]} Kd7 {[%clk 00:02:36]} {[%emt 00:00:03]} 12. Bxh5 {[%clk 00:02:19]}
{[%emt 00:00:03]} cxd4 {[%clk 00:02:36]} {[%emt 00:00:03]} 13. cxd4 {[%clk
00:02:20]} Nxd4 {[%clk 00:02:26]} {[%emt 00:00:12]} 14. O-O {[%clk 00:02:10]}
{[%emt 00:00:12]} Bd6 {[%clk 00:02:22]} {[%emt 00:00:05]} 15. g3 {[%clk
00:02:07]} {[%emt 00:00:05]} Nc6 {[%clk 00:02:08]} {[%emt 00:00:16]} 16. Re1
{[%clk 00:02:00]} {[%emt 00:00:09]} Kc7 {[%clk 00:02:00]} {[%emt 00:00:10]} 17.
Nf1 {[%clk 00:01:55]} {[%emt 00:00:06]} Bb4 {[%clk 00:01:52]} {[%emt 00:00:10]}
18. Bd2 {[%clk 00:01:54]} {[%emt 00:00:02]} Bxd2 {[%clk 00:01:48]} {[%emt
00:00:06]} 19. Nxd2 {[%clk 00:01:56]} {[%emt 00:00:01]} Bd7 {[%clk 00:01:48]}
{[%emt 00:00:02]} 20. Nf1 {[%clk 00:01:52]} {[%emt 00:00:06]} Qg8 {[%clk
00:01:44]} {[%emt 00:00:05]} 21. Rc1 {[%clk 00:01:51]} {[%emt 00:00:03]} Qh7
{[%clk 00:01:36]} {[%emt 00:00:10]} 22. Bf3 {[%clk 00:01:48]} {[%emt 00:00:05]}
Rag8 {[%clk 00:01:34]} {[%emt 00:00:04]} 23. Qd2 {[%clk 00:01:34]} {[%emt
00:00:15]} Kb8 {[%clk 00:01:29]} {[%emt 00:00:07]} 24. Qf4+ {[%clk 00:01:34]}
{[%emt 00:00:02]} Ne5 {[%clk 00:01:24]} {[%emt 00:00:08]} 25. Rxe5 {[%clk
00:01:27]} {[%emt 00:00:09]} fxe5 {[%clk 00:01:25]} {[%emt 00:00:01]} 26. Qxe5+
{[%clk 00:01:28]} {[%emt 00:00:01]} Ka8 {[%clk 00:01:25]} {[%emt 00:00:01]} 27.
Rc7 {[%clk 00:01:24]} {[%emt 00:00:05]} Rc8 {[%clk 00:01:21]} {[%emt 00:00:07]}
28. h4 {[%clk 00:01:19]} {[%emt 00:00:07]} Rxc7 {[%clk 00:01:17]} {[%emt
00:00:06]} 29. Qxc7 {[%clk 00:01:20]} {[%emt 00:00:01]} Bc6 {[%clk 00:01:18]}
30. Qd6 {[%clk 00:01:15]} {[%emt 00:00:07]} Qf5 {[%clk 00:01:12]} {[%emt
00:00:08]} 31. Bg2 {[%clk 00:01:12]} {[%emt 00:00:05]} Rf8 {[%clk 00:01:10]}
{[%emt 00:00:05]} 32. f4 {[%clk 00:01:07]} {[%emt 00:00:06]} Bb5 {[%clk
00:01:01]} {[%emt 00:00:12]} 33. Ne3 {[%clk 00:01:08]} {[%emt 00:00:01]} Qf7
{[%clk 00:00:45]} {[%emt 00:00:18]} 34. Ng4 {[%clk 00:01:05]} {[%emt 00:00:04]}
Rg8 {[%clk 00:00:35]} {[%emt 00:00:12]} 35. Ne5 {[%clk 00:01:05]} {[%emt
00:00:02]} Qf5 {[%clk 00:00:31]} {[%emt 00:00:07]} 36. Kh2 {[%clk 00:01:03]}
{[%emt 00:00:04]} Qf6 {[%clk 00:00:09]} {[%emt 00:00:23]} 37. h5 {[%clk
00:00:54]} {[%emt 00:00:11]} Rh8 {[%clk 00:00:08]} {[%emt 00:00:03]} 38. Bf3
{[%clk 00:00:55]} {[%emt 00:00:01]} Qf5 {[%clk 00:00:06]} {[%emt 00:00:05]} 39.
Qc7 {[%clk 00:00:33]} {[%emt 00:00:24]} Rxh5+ {[%clk 00:00:06]} {[%emt
00:00:01]} 40. Bxh5 {[%clk 00:00:24]} {[%emt 00:00:11]} Qxh5+ {[%clk 00:00:07]}
41. Kg1 {[%clk 00:00:25]} {[%emt 00:00:01]} Qd1+ {[%clk 00:00:06]} {[%emt
00:00:03]} 42. Kh2 {[%clk 00:00:25]} {[%emt 00:00:02]} Qh5+ {[%clk 00:00:07]}
{[%emt 00:00:02]} 43. Kg1 {[%clk 00:00:26]} Qd1+ {[%emt 00:00:02]} 1/2-1/2

[Event "MČR v bleskovém šachu družstev 2019"]
[Site "Teplice, Czech Republic"]
[Date "2019.09.14"]
[Round "8.12"]
[White "Krejci, Jan"]
[Black "Sodoma, Jan"]
[Result "0-1"]
[TimeControl "3 mim. + 2 s"]
[BlackTitle "IM"]
[WhiteFideId "316873"]
[WhiteElo "2048"]
[BlackElo "2193"]

1. Nf3 {[%clk 00:03:02]} {[%emt 00:00:02]} Nf6 {[%clk 00:03:03]} {[%emt
00:00:01]} 2. c4 {[%clk 00:03:03]} e6 {[%clk 00:03:04]} {[%emt 00:00:01]} 3. g3
{[%clk 00:03:04]} {[%emt 00:00:01]} b6 {[%clk 00:03:04]} {[%emt 00:00:02]} 4.
Bg2 {[%clk 00:03:06]} Bb7 {[%clk 00:03:05]} {[%emt 00:00:01]} 5. O-O {[%clk
00:03:06]} {[%emt 00:00:02]} Be7 {[%clk 00:03:06]} 6. Re1 {[%clk 00:03:07]}
{[%emt 00:00:02]} O-O {[%clk 00:03:04]} {[%emt 00:00:04]} 7. Nc3 {[%clk
00:03:08]} c5 {[%clk 00:03:03]} {[%emt 00:00:03]} 8. e3 {[%clk 00:03:09]}
{[%emt 00:00:02]} d5 {[%clk 00:02:50]} {[%emt 00:00:14]} 9. cxd5 {[%clk
00:03:09]} {[%emt 00:00:02]} Nxd5 {[%clk 00:02:49]} {[%emt 00:00:03]} 10. Nxd5
{[%clk 00:03:06]} {[%emt 00:00:05]} Qxd5 {[%clk 00:02:43]} {[%emt 00:00:08]} 11.
d4 {[%clk 00:03:03]} {[%emt 00:00:05]} Rd8 {[%clk 00:02:29]} {[%emt 00:00:15]}
12. Nh4 {[%clk 00:02:37]} {[%emt 00:00:28]} Qd7 {[%clk 00:02:30]} {[%emt
00:00:01]} 13. Bxb7 {[%clk 00:02:36]} {[%emt 00:00:02]} Qxb7 {[%clk 00:02:30]}
{[%emt 00:00:02]} 14. Qf3 {[%clk 00:02:37]} {[%emt 00:00:02]} Nc6 {[%clk
00:02:11]} {[%emt 00:00:21]} 15. dxc5 {[%clk 00:02:26]} {[%emt 00:00:13]} Bxh4
{[%clk 00:02:05]} {[%emt 00:00:07]} 16. gxh4 {[%clk 00:02:27]} {[%emt
00:00:01]} bxc5 {[%clk 00:02:01]} {[%emt 00:00:06]} 17. b3 {[%clk 00:02:22]}
{[%emt 00:00:07]} Rab8 {[%clk 00:00:58]} {[%emt 00:01:05]} 18. Bb2 {[%clk
00:02:09]} {[%emt 00:00:16]} Nb4 {[%clk 00:00:59]} 19. Qg3 {[%clk 00:02:05]}
{[%emt 00:00:06]} f5 {[%clk 00:00:50]} {[%emt 00:00:11]} 20. Red1 {[%clk
00:01:30]} {[%emt 00:00:37]} Nd3 {[%clk 00:00:40]} {[%emt 00:00:13]} 21. Bc3
{[%clk 00:01:25]} {[%emt 00:00:06]} Rd7 {[%clk 00:00:33]} {[%emt 00:00:10]} 22.
Rd2 {[%clk 00:01:22]} {[%emt 00:00:05]} Rbd8 {[%clk 00:00:33]} {[%emt
00:00:02]} 23. Rad1 {[%clk 00:01:22]} {[%emt 00:00:01]} g6 {[%clk 00:00:29]}
{[%emt 00:00:07]} 24. h5 {[%clk 00:01:21]} {[%emt 00:00:03]} f4 {[%clk
00:00:24]} {[%emt 00:00:07]} 25. exf4 {[%clk 00:01:16]} {[%emt 00:00:08]} Qe4
{[%clk 00:00:25]} {[%emt 00:00:01]} 26. hxg6 {[%clk 00:01:01]} {[%emt
00:00:17]} hxg6 {[%emt 00:00:01]} 27. Bf6 {[%clk 00:00:53]} {[%emt 00:00:10]}
Nxf4 {[%clk 00:00:20]} {[%emt 00:00:08]} 28. Rxd7 {[%clk 00:00:17]} {[%emt
00:00:37]} Ne2+ {[%clk 00:00:20]} {[%emt 00:00:03]} 29. Kf1 {[%clk 00:00:19]}
0-1

[Event "MČR v bleskovém šachu družstev 2019"]
[Site "Teplice, Czech Republic"]
[Date "2019.09.14"]
[Round "8.13"]
[White "Vojta, Tomas"]
[Black "Bach, Markus"]
[Result "1-0"]
[TimeControl "3 mim. + 2 s"]
[WhiteTitle "FM"]
[WhiteFideId "308781"]
[BlackFideId "24603376"]
[WhiteElo "2353"]
[BlackElo "2259"]

1. e4 {[%clk 00:03:02]} {[%emt 00:00:02]} c6 {[%clk 00:03:01]} {[%emt
00:00:03]} 2. d4 {[%clk 00:03:03]} {[%emt 00:00:01]} d5 {[%clk 00:03:02]} 3. e5
{[%clk 00:03:04]} {[%emt 00:00:02]} c5 {[%clk 00:03:04]} 4. dxc5 {[%emt
00:00:02]} Nc6 5. Bb5 {[%clk 00:02:56]} {[%emt 00:00:09]} e6 {[%clk 00:03:05]}
{[%emt 00:00:03]} 6. Be3 {[%clk 00:02:55]} {[%emt 00:00:03]} Qa5+ {[%clk
00:02:28]} {[%emt 00:00:39]} 7. Nc3 {[%clk 00:02:54]} {[%emt 00:00:02]} a6
{[%clk 00:02:30]} 8. Bxc6+ {[%clk 00:02:52]} {[%emt 00:00:04]} bxc6 {[%clk
00:02:31]} 9. a3 {[%clk 00:02:53]} Rb8 {[%clk 00:02:24]} {[%emt 00:00:09]} 10.
b4 {[%clk 00:02:48]} {[%emt 00:00:07]} Qc7 {[%clk 00:02:25]} 11. Nf3 {[%clk
00:02:43]} {[%emt 00:00:07]} Ne7 {[%clk 00:02:18]} {[%emt 00:00:10]} 12. O-O
{[%clk 00:02:42]} {[%emt 00:00:03]} Nf5 {[%clk 00:02:19]} 13. Bd4 {[%clk
00:02:37]} {[%emt 00:00:07]} a5 {[%clk 00:02:10]} {[%emt 00:00:11]} 14. Rb1
{[%clk 00:02:35]} {[%emt 00:00:04]} Ba6 {[%clk 00:02:06]} {[%emt 00:00:06]} 15.
Re1 {[%clk 00:02:36]} Be7 {[%clk 00:02:03]} {[%emt 00:00:05]} 16. Ne2 {[%clk
00:02:22]} {[%emt 00:00:17]} Nxd4 {[%clk 00:01:52]} {[%emt 00:00:13]} 17. Nexd4
{[%clk 00:02:19]} {[%emt 00:00:05]} O-O {[%clk 00:01:40]} {[%emt 00:00:14]} 18.
c3 {[%clk 00:02:20]} {[%emt 00:00:01]} Bc4 {[%clk 00:01:35]} {[%emt 00:00:08]}
19. Qd2 {[%clk 00:02:08]} {[%emt 00:00:13]} h6 {[%clk 00:01:31]} {[%emt
00:00:05]} 20. Qc2 {[%clk 00:01:59]} {[%emt 00:00:12]} Rb7 {[%clk 00:01:32]}
{[%emt 00:00:01]} 21. Nb3 {[%clk 00:01:57]} {[%emt 00:00:04]} axb4 {[%clk
00:01:28]} {[%emt 00:00:06]} 22. axb4 {[%clk 00:01:54]} {[%emt 00:00:04]} 1-0

[Event "MČR v bleskovém šachu družstev 2019"]
[Site "Teplice, Czech Republic"]
[Date "2019.09.14"]
[Round "8.15"]
[White "Svanda, Ondrej"]
[Black "Tresnak, Filip"]
[Result "1-0"]
[TimeControl "3 mim. + 2 s"]
[WhiteTitle "FM"]
[WhiteFideId "359670"]
[BlackFideId "333905"]
[WhiteElo "1924"]
[BlackElo "1931"]

1. e4 {[%emt 00:04:20]} e6 {[%emt 00:00:03]} 2. d4 {[%emt 00:00:03]} d5 {[%emt
00:00:01]} 3. Nc3 Bb4 {[%emt 00:00:01]} 4. e5 {[%emt 00:00:03]} c5 5. Bd2 cxd4
{[%emt 00:00:09]} 6. Nb5 Be7 {[%emt 00:00:10]} 7. Qg4 {[%emt 00:00:08]} Kf8
{[%emt 00:00:03]} 8. Nf3 {[%emt 00:00:11]} Nc6 {[%emt 00:00:03]} 9. Nbxd4
{[%emt 00:00:09]} Nb4 {[%emt 00:00:16]} 10. a3 {[%emt 00:00:26]} Nc6 11. Bd3
{[%emt 00:00:03]} a6 {[%emt 00:00:04]} 12. O-O {[%emt 00:00:07]} Qc7 {[%emt
00:00:01]} 13. Nxc6 {[%emt 00:00:16]} bxc6 {[%emt 00:00:02]} 14. c4 {[%emt
00:00:01]} a5 {[%emt 00:00:14]} 15. b4 {[%emt 00:00:08]} axb4 {[%emt 00:00:21]}
16. axb4 {[%emt 00:00:01]} Rxa1 {[%emt 00:00:01]} 17. Rxa1 dxc4 {[%emt
00:00:02]} 18. Bxc4 {[%emt 00:00:08]} h5 {[%emt 00:00:08]} 19. Qe4 {[%emt
00:00:08]} Nh6 {[%emt 00:00:04]} 20. Nd4 {[%emt 00:00:16]} Bb7 {[%emt
00:00:10]} 21. Qe2 {[%emt 00:00:18]} g6 {[%emt 00:00:08]} 22. b5 {[%emt
00:00:15]} cxb5 {[%emt 00:00:10]} 23. Nxb5 {[%emt 00:00:02]} Qc6 24. f3 {[%emt
00:00:06]} Kg7 {[%emt 00:00:11]} 25. Kh1 Nf5 {[%emt 00:00:02]} 26. Bd3 {[%emt
00:00:12]} Bc5 {[%emt 00:00:29]} 27. Be4 {[%emt 00:00:03]} Qc8 {[%emt
00:00:07]} 28. Rc1 {[%emt 00:00:11]} Bxe4 {[%emt 00:00:10]} 29. fxe4 {[%emt
00:00:02]} Ne7 {[%emt 00:00:16]} 30. Be3 {[%emt 00:00:06]} Bxe3 {[%emt
00:00:17]} 31. Rxc8 {[%emt 00:00:01]} Rxc8 {[%emt 00:00:02]} 32. Qxe3 Rb8
{[%emt 00:00:05]} 33. Nc3 {[%emt 00:00:04]} Nc6 {[%emt 00:00:04]} 34. h3 {[%emt
00:00:04]} Nxe5 {[%emt 00:00:02]} 35. Qd4 {[%emt 00:00:05]} f6 {[%emt
00:00:02]} 36. Na4 {[%emt 00:00:04]} Rb1+ {[%emt 00:00:05]} 37. Kh2 Rb7 {[%emt
00:00:03]} 38. Nc5 {[%emt 00:00:02]} Re7 {[%emt 00:00:02]} 39. Qd6 {[%emt
00:00:01]} Kf7 {[%emt 00:00:03]} 40. Nd3 Nxd3 {[%emt 00:00:05]} 41. Qxd3 {[%emt
00:00:01]} e5 {[%emt 00:00:01]} 42. Qd5+ Kg7 {[%emt 00:00:01]} 43. Kg3 {[%emt
00:00:02]} f5 {[%emt 00:00:01]} 44. exf5 {[%emt 00:00:02]} gxf5 45. Kh4 Kg6
{[%emt 00:00:03]} 46. Qd6+ {[%emt 00:00:02]} Kf7 {[%emt 00:00:01]} 47. Kg5 Re6
{[%emt 00:00:02]} 48. Qd7+ {[%emt 00:00:02]} Re7 {[%emt 00:00:02]} 49. Qxf5+
{[%emt 00:00:01]} Ke8 50. Qc8+ Kf7 {[%emt 00:00:01]} 51. Kf5 Kg7 {[%emt
00:00:02]} 52. Qc3 {[%emt 00:00:02]} Kh6 {[%emt 00:00:06]} 53. Qg3 {[%emt
00:00:03]} Rg7 {[%emt 00:00:04]} 54. Qe3+ {[%emt 00:00:03]} Kh7 {[%emt
00:00:02]} 55. Qxe5 {[%emt 00:00:02]} 1-0

[Event "MČR v bleskovém šachu družstev 2019"]
[Site "Teplice, Czech Republic"]
[Date "2019.09.14"]
[Round "8.16"]
[White "Prudek, Jiri"]
[Black "Skacelik, Petr"]
[Result "0-1"]
[TimeControl "3 mim. + 2 s"]
[WhiteFideId "327310"]
[BlackFideId "307904"]
[WhiteElo "1962"]
[BlackElo "2078"]

1. e4 {[%clk 00:03:02]} {[%emt 00:00:01]} c5 {[%clk 00:03:03]} 2. Nf3 {[%clk
00:03:00]} {[%emt 00:00:04]} Nc6 {[%clk 00:03:05]} 3. d4 {[%clk 00:03:01]}
{[%emt 00:00:02]} cxd4 {[%clk 00:03:05]} 4. Nxd4 {[%clk 00:03:02]} g6 {[%clk
00:03:07]} 5. Nc3 {[%clk 00:02:58]} {[%emt 00:00:06]} Bg7 {[%clk 00:03:08]} 6.
Be3 {[%clk 00:02:58]} {[%emt 00:00:02]} Nf6 {[%clk 00:03:09]} 7. f3 {[%clk
00:02:58]} {[%emt 00:00:02]} O-O {[%clk 00:03:09]} {[%emt 00:00:03]} 8. Qd2
{[%clk 00:02:58]} {[%emt 00:00:01]} d5 {[%clk 00:03:10]} {[%emt 00:00:01]} 9.
Nxc6 {[%clk 00:02:34]} {[%emt 00:00:27]} bxc6 {[%clk 00:03:11]} {[%emt
00:00:01]} 10. e5 {[%clk 00:02:30]} {[%emt 00:00:06]} Nd7 {[%clk 00:03:12]}
{[%emt 00:00:02]} 11. f4 {[%clk 00:02:31]} f6 {[%clk 00:03:04]} {[%emt
00:00:10]} 12. exf6 {[%clk 00:02:12]} {[%emt 00:00:21]} Nxf6 {[%clk 00:02:59]}
{[%emt 00:00:07]} 13. Be2 {[%clk 00:01:50]} {[%emt 00:00:24]} e6 {[%clk
00:02:52]} {[%emt 00:00:09]} 14. O-O {[%clk 00:01:48]} {[%emt 00:00:03]} Nd7
{[%clk 00:02:46]} {[%emt 00:00:08]} 15. Bg4 {[%clk 00:01:37]} {[%emt 00:00:13]}
Re8 {[%clk 00:02:44]} {[%emt 00:00:03]} 16. Bd4 {[%clk 00:01:28]} {[%emt
00:00:12]} Bxd4+ {[%clk 00:02:32]} {[%emt 00:00:14]} 17. Qxd4 {[%clk 00:01:29]}
{[%emt 00:00:01]} Qb6 {[%clk 00:02:33]} 18. Qxb6 {[%clk 00:01:27]} {[%emt
00:00:04]} Nxb6 {[%clk 00:02:32]} {[%emt 00:00:03]} 19. b3 {[%clk 00:01:26]}
{[%emt 00:00:03]} e5 {[%clk 00:02:18]} {[%emt 00:00:16]} 20. fxe5 {[%clk
00:01:24]} {[%emt 00:00:05]} Bxg4 {[%clk 00:02:18]} {[%emt 00:00:02]} 21. Rae1
{[%clk 00:01:19]} {[%emt 00:00:07]} Re7 {[%clk 00:02:14]} {[%emt 00:00:06]} 22.
h3 {[%clk 00:01:20]} {[%emt 00:00:02]} Bf5 {[%clk 00:02:14]} 23. Rf2 {[%clk
00:01:17]} {[%emt 00:00:05]} Rae8 {[%clk 00:02:14]} {[%emt 00:00:01]} 24. g4
{[%clk 00:01:19]} {[%emt 00:00:01]} Bc8 {[%clk 00:02:11]} {[%emt 00:00:05]} 25.
Rfe2 {[%clk 00:01:19]} {[%emt 00:00:02]} Nd7 {[%clk 00:02:10]} {[%emt
00:00:03]} 26. e6 {[%clk 00:00:49]} {[%emt 00:00:32]} Nf8 {[%clk 00:02:05]}
{[%emt 00:00:07]} 27. Na4 {[%clk 00:00:49]} {[%emt 00:00:03]} Rxe6 {[%clk
00:02:06]} 28. Rxe6 {[%clk 00:00:49]} {[%emt 00:00:02]} Rxe6 {[%clk 00:02:07]}
29. Kf2 {[%clk 00:00:47]} {[%emt 00:00:04]} Rxe1 {[%clk 00:02:07]} {[%emt
00:00:02]} 30. Kxe1 {[%clk 00:00:48]} Ne6 {[%clk 00:02:08]} {[%emt 00:00:01]}
31. Ke2 {[%clk 00:00:49]} {[%emt 00:00:02]} Ba6+ {[%clk 00:02:08]} {[%emt
00:00:01]} 32. Ke3 {[%clk 00:00:50]} {[%emt 00:00:01]} Bb5 {[%clk 00:02:08]}
{[%emt 00:00:02]} 33. Nb2 {[%clk 00:00:47]} {[%emt 00:00:05]} Kf7 {[%clk
00:02:09]} {[%emt 00:00:03]} 34. Nd1 {[%clk 00:00:48]} {[%emt 00:00:03]} Ke7
{[%clk 00:02:08]} {[%emt 00:00:03]} 35. Nf2 {[%clk 00:00:48]} {[%emt 00:00:02]}
Kd6 {[%clk 00:02:08]} {[%emt 00:00:03]} 36. h4 {[%clk 00:00:47]} {[%emt
00:00:03]} c5 {[%clk 00:02:08]} {[%emt 00:00:02]} 37. c3 {[%clk 00:00:37]}
{[%emt 00:00:11]} d4+ {[%clk 00:02:08]} {[%emt 00:00:03]} 38. cxd4 {[%clk
00:00:38]} {[%emt 00:00:01]} cxd4+ {[%clk 00:02:09]} 39. Ke4 {[%clk 00:00:38]}
{[%emt 00:00:03]} Bc6+ {[%clk 00:02:08]} {[%emt 00:00:03]} 40. Kd3 {[%clk
00:00:35]} {[%emt 00:00:04]} Ke5 {[%clk 00:02:09]} {[%emt 00:00:02]} 41. a4
{[%clk 00:00:20]} {[%emt 00:00:18]} Bd5 {[%clk 00:02:01]} {[%emt 00:00:10]} 42.
b4 {[%clk 00:00:20]} {[%emt 00:00:02]} Nf4+ {[%clk 00:02:02]} 43. Kd2 {[%clk
00:00:19]} {[%emt 00:00:03]} Bc4 {[%clk 00:02:01]} {[%emt 00:00:03]} 44. Nd1
{[%clk 00:00:13]} {[%emt 00:00:09]} Nd5 {[%clk 00:01:58]} {[%emt 00:00:05]} 45.
Nb2 {[%clk 00:00:11]} {[%emt 00:00:05]} Bf1 {[%clk 00:01:53]} {[%emt 00:00:07]}
46. b5 {[%clk 00:00:10]} {[%emt 00:00:03]} Nc3 {[%clk 00:01:49]} {[%emt
00:00:06]} 47. Ke1 {[%clk 00:00:08]} {[%emt 00:00:04]} Bh3 {[%emt 00:00:04]} 48.
g5 {[%clk 00:00:08]} Be6 {[%clk 00:01:46]} {[%emt 00:00:03]} 49. Nd3+ {[%clk
00:00:07]} {[%emt 00:00:02]} Kf5 {[%clk 00:01:42]} {[%emt 00:00:05]} 50. Nc5
{[%clk 00:00:08]} {[%emt 00:00:02]} Bc4 {[%clk 00:01:38]} {[%emt 00:00:04]} 0-1

[Event "MČR v bleskovém šachu družstev 2019"]
[Site "Teplice, Czech Republic"]
[Date "2019.09.14"]
[Round "8.17"]
[White "Bujak, Michal"]
[Black "Trepka, Jan"]
[Result "0-1"]
[TimeControl "3 mim. + 2 s"]
[WhiteFideId "316318"]
[BlackFideId "322814"]
[WhiteElo "2120"]
[BlackElo "2186"]

1. e4 {[%clk 00:03:01]} {[%emt 00:00:03]} c6 {[%clk 00:03:04]} 2. d4 {[%clk
00:03:02]} {[%emt 00:00:02]} d5 {[%clk 00:03:05]} 3. Nc3 {[%clk 00:03:03]} dxe4
{[%clk 00:03:06]} 4. Nxe4 {[%clk 00:03:04]} {[%emt 00:00:01]} Nf6 {[%clk
00:03:07]} {[%emt 00:00:01]} 5. Nxf6+ {[%clk 00:03:05]} {[%emt 00:00:01]} exf6
{[%clk 00:03:08]} {[%emt 00:00:01]} 6. c3 {[%clk 00:03:06]} {[%emt 00:00:02]}
Be6 {[%clk 00:03:08]} {[%emt 00:00:01]} 7. Bd3 {[%clk 00:03:03]} {[%emt
00:00:05]} Bd6 {[%clk 00:03:08]} {[%emt 00:00:01]} 8. Qc2 {[%clk 00:02:57]}
{[%emt 00:00:10]} Qc7 {[%clk 00:03:05]} {[%emt 00:00:04]} 9. Ne2 {[%clk
00:02:38]} {[%emt 00:00:20]} Nd7 {[%clk 00:02:38]} {[%emt 00:00:30]} 10. Be3
{[%clk 00:02:26]} {[%emt 00:00:14]} a6 {[%clk 00:02:11]} {[%emt 00:00:29]} 11.
c4 {[%clk 00:02:16]} {[%emt 00:00:13]} Bb4+ {[%clk 00:01:56]} {[%emt 00:00:17]}
12. Nc3 {[%clk 00:02:16]} {[%emt 00:00:02]} Nb6 {[%clk 00:01:32]} {[%emt
00:00:26]} 13. a3 {[%clk 00:02:12]} {[%emt 00:00:05]} Be7 {[%clk 00:01:29]}
{[%emt 00:00:05]} 14. Ne4 {[%clk 00:01:46]} {[%emt 00:00:28]} Rd8 {[%clk
00:01:19]} {[%emt 00:00:12]} 15. O-O-O {[%clk 00:01:25]} {[%emt 00:00:22]} f5
{[%clk 00:01:06]} {[%emt 00:00:16]} 16. Nc5 {[%clk 00:01:20]} {[%emt 00:00:08]}
Bf6 {[%clk 00:00:30]} {[%emt 00:00:37]} 17. Rhe1 {[%clk 00:01:09]} {[%emt
00:00:12]} O-O {[%clk 00:00:24]} {[%emt 00:00:09]} 18. Nxe6 fxe6 {[%clk
00:00:24]} 19. g3 {[%clk 00:00:21]} {[%emt 00:00:14]} Bxd4 {[%clk 00:00:22]}
{[%emt 00:00:04]} 20. Bf4 {[%clk 00:00:14]} {[%emt 00:00:10]} Qc8 {[%clk
00:00:16]} {[%emt 00:00:07]} 21. Re2 {[%clk 00:00:15]} {[%emt 00:00:02]} Rfe8
{[%clk 00:00:10]} {[%emt 00:00:08]} 22. Rde1 {[%clk 00:00:16]} g6 {[%clk
00:00:11]} {[%emt 00:00:01]} 23. g4 {[%clk 00:00:13]} {[%emt 00:00:04]} c5
{[%clk 00:00:08]} {[%emt 00:00:05]} 24. Bg5 {[%clk 00:00:10]} {[%emt 00:00:04]}
e5 {[%clk 00:00:04]} {[%emt 00:00:07]} 25. Bxd8 {[%clk 00:00:08]} {[%emt
00:00:05]} Qxd8 {[%clk 00:00:06]} 26. gxf5 {[%clk 00:00:08]} {[%emt 00:00:02]}
g5 {[%clk 00:00:04]} {[%emt 00:00:01]} 27. f6 {[%clk 00:00:06]} {[%emt
00:00:04]} h6 {[%clk 00:00:08]} 28. Bg6 {[%clk 00:00:06]} {[%emt 00:00:03]} Rf8
{[%clk 00:00:09]} {[%emt 00:00:01]} 29. f7+ Kg7 30. Bh5 {[%clk 00:00:07]}
{[%emt 00:00:02]} Qf6 {[%clk 00:00:11]} 31. h4 {[%clk 00:00:06]} {[%emt
00:00:02]} Nc8 {[%clk 00:00:12]} {[%emt 00:00:01]} 32. Rg1 {[%clk 00:00:06]}
{[%emt 00:00:02]} Nd6 {[%clk 00:00:13]} 33. hxg5 {[%clk 00:00:07]} {[%emt
00:00:02]} hxg5 {[%clk 00:00:15]} 34. f3 {[%clk 00:00:07]} {[%emt 00:00:03]}
Nxf7 {[%clk 00:00:16]} 35. Rh2 {[%emt 00:00:02]} Bxg1 {[%clk 00:00:16]} {[%emt
00:00:01]} 36. Bxf7 {[%clk 00:00:07]} {[%emt 00:00:03]} Kxf7 {[%clk 00:00:17]}
{[%emt 00:00:01]} 37. Rh7+ {[%clk 00:00:05]} {[%emt 00:00:04]} Ke8 {[%clk
00:00:17]} {[%emt 00:00:01]} 38. Qd1 {[%clk 00:00:05]} {[%emt 00:00:02]} Rf7
{[%clk 00:00:15]} {[%emt 00:00:04]} 39. Rxf7 {[%clk 00:00:00]} {[%emt
00:00:05]} Kxf7 {[%clk 00:00:15]} {[%emt 00:00:01]} 0-1